bitfinex-derivatives/quotes_SOLF0:USTF0_20260226
["timestamp","ask_amount","ask_price","bid_price","bid_amount"]
[1772122092795,3.81979283,86.256,86.181,3.70006753]
[1772122092996,3.74353247,86.256,86.181,3.70006753]
[1772122093391,3.74353247,86.254,86.181,3.70006753]
[1772122093586,3.74353247,86.254,86.161,3.70006753]
[1772122094097,3.74353247,86.242,86.161,3.70006753]
[1772122095696,3.74353247,86.242,86.16,8.29998613]
[1772122095697,3.74353247,86.24,86.166,3.70006753]
[1772122095899,0.07689783,86.21,86.166,3.70006753]
[1772122097098,10.4355,86.242,86.168,3.70006753]
[1772122097300,3.74353247,86.241,86.153,3.70006753]
[1772122097996,3.74353247,86.22,86.153,3.70006753]
[1772122098501,3.74353247,86.22,86.142,3.70006753]
[1772122099102,3.74353247,86.203,86.142,3.70006753]
[1772122099297,3.74353247,86.203,86.172,0.07378191]
[1772122099696,10.4412,86.195,86.172,0.07378191]
[1772122099997,3.74353247,86.203,86.142,3.70006753]
[1772122100297,3.74353247,86.197,86.122,3.70006753]
[1772122101005,3.74353247,86.197,86.122,14.14986753]
[1772122101396,3.74353247,86.197,86.122,3.70006753]
[1772122101603,10.4431,86.179,86.122,3.70006753]
[1772122101994,10.4431,86.179,86.123,10.4498]
[1772122102797,10.4418,86.189,86.133,14.14866753]
[1772122103006,3.74353247,86.197,86.134,3.70006753]
[1772122103305,3.74353247,86.197,86.144,10.4472]
[1772122103499,3.74353247,86.197,86.134,3.70006753]
[1772122104103,10.4411,86.195,86.135,3.70006753]
[1772122104507,3.74353247,86.197,86.135,3.70006753]
[1772122104708,3.74353247,86.197,86.138,3.70006753]
[1772122105103,10.4411,86.196,86.14,10.4477]
[1772122105504,10.4411,86.196,86.138,3.70006753]
[1772122106207,3.74353247,86.197,86.14,3.70006753]
[1772122106812,10.4419,86.189,86.14,3.70006753]
[1772122107002,3.74353247,86.197,86.121,3.70006753]
[1772122108412,3.74353247,86.197,86.122,3.70006753]
[1772122108810,3.74353247,86.197,86.131,3.70006753]
[1772122109509,3.74353247,86.197,86.1,8.29998613]
[1772122109510,3.74353247,86.216,86.151,3.70006753]
[1772122109910,3.74353247,86.249,86.169,10.4442]
[1772122110511,3.74353247,86.242,86.178,10.4431]
[1772122110908,3.74353247,86.242,86.171,3.70006753]
[1772122111209,3.74353247,86.242,86.188,0.08224853]
[1772122111513,3.74353247,86.242,86.171,3.70006753]
[1772122111912,3.74353247,86.242,86.198,0.085139]
[1772122112107,3.74353247,86.242,86.171,3.70006753]
[1772122112306,0.0849865,86.215,86.171,3.70006753]
[1772122113013,0.0849865,86.215,86.171,14.14396753]
[1772122113214,0.0849865,86.215,86.15,8.29998613]
[1772122113215,0.0849865,86.215,86.172,3.70006753]
[1772122113510,3.74353247,86.242,86.172,3.70006753]
[1772122113708,10.4356,86.241,86.172,3.70006753]
[1772122113910,0.08117539,86.202,86.172,3.70006753]
[1772122114110,0.08117539,86.202,86.151,3.70006753]
[1772122114613,3.74353247,86.223,86.151,3.70006753]
[1772122115004,0.08015332,86.185,86.151,3.70006753]
[1772122115317,8.29998613,86.27,86.151,3.70006753]
[1772122115318,3.74353247,86.221,86.178,0.0737737]
[1772122115710,3.74353247,86.221,86.151,3.70006753]
[1772122116011,10.4382,86.219,86.168,10.4443]
[1772122116512,3.74353247,86.221,86.168,10.4443]
[1772122116816,8.29998613,86.27,86.151,3.70006753]
[1772122116817,3.74353247,86.239,86.151,3.70006753]
[1772122117123,3.74353247,86.239,86.177,10.4432]
[1772122117124,10.436,86.237,86.177,10.4432]
[1772122117413,3.74353247,86.236,86.177,10.4432]
[1772122117810,3.74353247,86.236,86.137,34.82]
[1772122117811,3.69468153,86.249,86.194,10.4412]
[1772122118404,3.69468153,86.249,86.213,0.07730297]
[1772122119513,3.69468153,86.249,86.17,8.29998613]
[1772122119714,0.07363878,86.24,86.171,3.61041118]
[1772122120017,3.69468153,86.249,86.171,3.61041118]
[1772122120717,3.68213184,86.269,86.191,3.61041118]
[1772122121117,3.68213184,86.269,86.214,10.4387]
[1772122121318,3.68213184,86.269,86.191,3.61041118]
[1772122122118,10.4323,86.268,86.221,10.4378]
[1772122122319,3.68213184,86.269,86.221,10.51234911]
[1772122122521,3.68213184,86.269,86.228,10.437]
[1772122122722,3.68213184,86.269,86.221,0.07454911]
[1772122122916,3.68213184,86.269,86.191,3.61041118]
[1772122123116,3.68213184,86.262,86.191,3.61041118]
[1772122123317,3.68213184,86.262,86.221,0.08057316]
[1772122124919,10.4333,86.26,86.221,0.08057316]
[1772122125923,10.4337,86.256,86.221,0.08057316]
[1772122126324,3.68213184,86.259,86.191,3.61041118]
[1772122126525,10.4319,86.271,86.191,3.61041118]
[1772122126823,3.68213184,86.295,86.211,3.61041118]
[1772122127027,3.68213184,86.295,86.251,10.4343]
[1772122127323,3.68213184,86.295,86.232,3.61041118]
[1772122127627,3.68213184,86.315,86.249,10.4345]
[1772122128326,10.4276,86.307,86.253,10.434]
[1772122128724,3.68213184,86.315,86.253,10.434]
[1772122129024,3.68213184,86.315,86.251,3.61041118]
[1772122129522,3.68213184,86.333,86.274,0.07558827]
[1772122129827,3.68213184,86.333,86.274,3.68599945]
[1772122130024,3.68213184,86.351,86.274,3.61041118]
[1772122130524,3.68213184,86.351,86.295,0.0755123]
[1772122130914,8.29998613,86.37,86.274,3.61041118]
[1772122130915,3.68213184,86.347,86.292,10.4293]
[1772122131122,3.68213184,86.347,86.274,3.61041118]
[1772122131322,3.68213184,86.347,86.304,0.07961814]
[1772122131719,3.75825134,86.319,86.253,3.61041118]
[1772122132132,3.68213184,86.319,86.253,3.61041118]
[1772122132524,3.68213184,86.319,86.275,10.4313]
[1772122132729,3.68213184,86.319,86.234,3.61041118]
[1772122132925,3.68213184,86.309,86.211,3.61041118]
[1772122133132,3.68213184,86.294,86.211,3.61041118]
[1772122133537,3.68213184,86.289,86.239,10.4357]
[1772122133730,3.68213184,86.289,86.211,3.61041118]
[1772122133937,0.07473543,86.261,86.229,10.4368]
[1772122134234,3.68213184,86.269,86.211,3.61041118]
[1772122134436,8.43174261,86.329,86.211,3.61041118]
[1772122134437,10.4288,86.297,86.24,10.4355]
[1772122134736,8.29998613,86.31,86.211,3.61041118]
[1772122135040,8.29998613,86.31,86.218,10.4382]
[1772122135229,8.29998613,86.29,86.21,8.29998613]
[1772122136438,3.68213184,86.289,86.21,8.29998613]
[1772122137040,3.68213184,86.289,86.212,10.4389]
[1772122138042,3.68213184,86.289,86.203,14.05041118]
[1772122138239,3.68213184,86.269,86.191,3.61041118]
[1772122138440,3.68213184,86.245,86.173,3.61041118]
[1772122138638,3.68213184,86.245,86.184,10.4424]
[1772122138936,3.68213184,86.264,86.19,8.29998613]
[1772122139138,3.68213184,86.287,86.191,3.61041118]
[1772122139340,3.68213184,86.287,86.219,10.4381]
[1772122139537,3.68213184,86.287,86.219,14.04851118]
[1772122140034,3.68213184,86.287,86.227,10.4371]
[1772122140236,3.68213184,86.287,86.219,3.61041118]
[1772122140633,10.4332,86.261,86.219,3.61041118]
[1772122140835,3.68213184,86.287,86.244,0.07380737]
[1772122141041,10.4309,86.28,86.244,0.07380737]
[1772122141242,3.68213184,86.287,86.244,0.07380737]
[1772122141541,3.68213184,86.289,86.244,0.07380737]
[1772122142042,10.4327,86.265,86.219,3.61041118]
[1772122143741,10.4327,86.265,86.164,20.8896]
[1772122143742,3.68213184,86.308,86.221,3.61041118]
[1772122143944,3.68213184,86.308,86.234,3.61041118]
[1772122144144,10.4302,86.286,86.234,3.61041118]
[1772122144343,3.68213184,86.308,86.234,3.61041118]
[1772122144843,10.4292,86.294,86.235,3.61041118]
[1772122145545,10.4292,86.294,86.246,10.4349]
[1772122145946,10.4281,86.303,86.247,3.61041118]
[1772122146243,3.68213184,86.308,86.23,11.91039731]
[1772122146447,3.68213184,86.291,86.23,3.61041118]
[1772122146838,10.4312,86.277,86.212,3.61041118]
[1772122147448,3.68213184,86.284,86.236,0.07343465]
[1772122147945,3.68213184,86.284,86.229,3.61041118]
[1772122147946,3.68213184,86.309,86.229,3.61041118]
[1772122148243,14.11033184,86.302,86.239,10.4357]
[1772122148439,3.68213184,86.301,86.248,0.07393845]
[1772122148843,3.68213184,86.301,86.239,10.4357]
[1772122149242,3.68213184,86.289,86.209,3.61041118]
[1772122149444,3.68213184,86.269,86.191,3.61041118]
[1772122149643,3.79606026,86.25,86.185,10.4422]
[1772122149846,12.09604639,86.25,86.185,10.4422]
[1772122150142,3.79606026,86.249,86.173,3.52760711]
[1772122150943,3.79606026,86.229,86.152,3.52760711]
[1772122152540,10.4372,86.228,86.16,3.52760711]
[1772122153347,14.23326026,86.228,86.16,3.52760711]
[1772122153545,10.4381,86.22,86.16,3.52760711]
[1772122155247,3.79606026,86.228,86.162,3.52760711]
[1772122155848,10.4392,86.211,86.162,3.52760711]
[1772122156049,3.79606026,86.228,86.15,8.29998613]
[1772122156245,3.79606026,86.219,86.143,3.52760711]
[1772122156951,10.4403,86.202,86.145,3.52760711]
[1772122157152,3.79606026,86.219,86.145,3.52760711]
[1772122157554,3.79606026,86.196,86.128,3.52760711]
[1772122157955,10.4427,86.182,86.13,10.4489]
[1772122158250,10.4427,86.182,86.128,3.52760711]
[1772122158854,10.4427,86.182,86.129,3.52760711]
[1772122159150,10.4437,86.174,86.129,3.52760711]
[1772122159853,10.4446,86.167,86.11,22.28363859]
[1772122160150,3.79606026,86.173,86.115,3.52760711]
[1772122160357,8.30473148,86.21,86.115,3.52760711]
[1772122160358,10.4434,86.176,86.115,3.52760711]
[1772122160652,3.79606026,86.19,86.115,3.52760711]
[1772122160951,3.79606026,86.189,86.115,3.52760711]
[1772122161952,3.79606026,86.187,86.125,10.4495]
[1772122162648,3.79606026,86.185,86.125,10.4495]
[1772122162854,3.79606026,86.185,86.115,13.97830711]
[1772122163053,3.79606026,86.185,86.147,0.07326837]
[1772122163556,3.79606026,86.166,86.109,3.52760711]
[1772122164454,3.79606026,86.183,86.109,3.52760711]
[1772122165353,0.07717615,86.155,86.109,3.52760711]
[1772122165949,0.07717615,86.155,86.126,10.4493]
[1772122167149,0.07717615,86.155,86.133,10.4485]
[1772122167654,0.07717615,86.155,86.109,3.52760711]
[1772122168251,0.07717615,86.155,86.111,3.52760711]
[1772122168652,3.79606026,86.183,86.111,3.52760711]
[1772122169650,3.79606026,86.175,86.111,3.52760711]
[1772122169851,3.79606026,86.175,86.094,3.52760711]
[1772122170954,3.79606026,86.162,86.111,10.4511]
[1772122171952,0.07337201,86.145,86.111,10.4511]
[1772122172348,0.07337201,86.145,86.103,10.4522]
[1772122172657,0.07337201,86.145,86.071,20.9121]
[1772122172658,3.86943227,86.145,86.071,3.52760711]
[1772122173056,3.79606026,86.119,86.06,8.30473148]
[1772122173360,3.79606026,86.119,86.054,3.52760711]
[1772122173558,0.07429711,86.111,86.073,10.4558]
[1772122174159,3.79606026,86.143,86.079,3.52760711]
[1772122174359,3.79606026,86.143,86.083,0.07547326]
[1772122174759,3.79606026,86.143,86.079,3.52760711]
[1772122175058,8.30473148,86.17,86.093,10.4534]
[1772122175059,3.79606026,86.141,86.093,10.4534]
[1772122175554,3.79606026,86.141,86.079,3.52760711]
[1772122175759,3.79606026,86.169,86.081,3.52760711]
[1772122175955,3.79606026,86.169,86.101,0.07547405]
[1772122176158,14.24246026,86.151,86.105,10.452]
[1772122176751,3.79606026,86.151,86.1,10.4525]
[1772122176952,3.79606026,86.149,86.061,3.52760711]
[1772122177255,10.4482,86.137,86.107,0.07739625]
[1772122177456,3.79606026,86.169,86.107,0.07739625]
[1772122177960,3.74014184,86.147,86.094,10.4533]
[1772122178358,3.74014184,86.168,86.101,3.70011434]
[1772122178757,3.74014184,86.168,86.106,3.70011434]
[1772122179462,3.55404734,86.159,86.085,3.54407849]
[1772122180562,10.4491,86.129,86.085,3.54407849]
[1772122181864,0.0739904,86.116,86.085,3.54407849]
[1772122182567,10.4519,86.106,86.062,3.54407849]
[1772122182862,0.0739904,86.116,86.062,3.54407849]
[1772122183064,3.55404734,86.136,86.062,3.54407849]
[1772122183768,0.07805384,86.108,86.062,3.54407849]
[1772122184068,0.07805384,86.108,86.06,8.30473148]
[1772122184069,0.07805384,86.108,86.071,3.54407849]
[1772122184568,0.07805384,86.108,86.072,10.4559]
[1772122184764,3.55404734,86.136,86.081,3.54407849]
[1772122184965,3.55404734,86.159,86.081,3.54407849]
[1772122185966,10.448,86.138,86.088,10.454]
[1772122186163,10.448,86.138,86.088,13.99807849]
[1772122186368,10.448,86.138,86.104,0.07910111]
[1772122186672,10.447,86.147,86.104,0.07910111]
[1772122187371,10.447,86.147,86.117,0.07580819]
[1772122187571,14.00104734,86.147,86.117,0.07580819]
[1772122188365,3.55404734,86.209,86.12,8.30473148]
[1772122188565,3.55404734,86.209,86.121,3.54407849]
[1772122189061,10.4443,86.169,86.126,10.4494]
[1772122189267,162.3324,86.241,86.101,3.54407849]
[1772122189268,3.55404734,86.168,86.101,3.54407849]
[1772122189973,3.55404734,86.168,86.126,0.07975023]
[1772122190574,10.4466,86.15,86.126,0.07975023]
[1772122191372,3.55404734,86.186,86.126,0.07975023]
[1772122191772,3.55404734,86.186,86.119,3.54407849]
[1772122192171,3.55404734,86.186,86.144,0.07720665]
[1772122193979,10.4424,86.185,86.144,0.07720665]
[1772122195575,10.4431,86.179,86.144,0.07720665]
[1772122199082,3.55404734,86.186,86.144,0.07720665]
[1772122199479,10.4435,86.176,86.144,0.07720665]
[1772122201384,3.55404734,86.175,86.101,3.54407849]
[1772122201587,0.07638631,86.169,86.089,3.54407849]
[1772122201787,3.55404734,86.168,86.09,3.54407849]
[1772122201979,10.4468,86.148,86.105,10.4519]
[1772122202277,3.55404734,86.168,86.09,3.54407849]
[1772122202480,3.55404734,86.15,86.09,3.54407849]
[1772122202788,0.07824834,86.135,86.09,3.54407849]
[1772122202981,3.55404734,86.167,86.09,3.54407849]
[1772122203286,3.55404734,86.167,86.081,3.54407849]
[1772122203682,3.55404734,86.141,86.081,3.54407849]
[1772122204188,10.4488,86.132,86.088,10.454]
[1772122204375,10.4488,86.132,86.102,0.07538401]
[1772122204682,10.4479,86.139,86.102,0.07538401]
[1772122204886,3.55404734,86.189,86.102,3.6194625]
[1772122205278,3.55404734,86.189,86.123,10.4497]
[1772122205873,10.4446,86.166,86.117,3.54407849]
[1772122206080,0.07433161,86.165,86.117,3.54407849]
[1772122206280,3.62837895,86.165,86.101,3.54407849]
[1772122206484,3.55404734,86.163,86.082,3.54407849]
[1772122206776,3.55404734,86.149,86.082,3.54407849]
[1772122207380,0.08106217,86.124,86.065,452.16871818]
[1772122207686,0.08106217,86.124,86.068,3.54407849]
[1772122207887,3.55404734,86.127,86.068,3.54407849]
[1772122208084,3.55404734,86.127,86.051,3.54407849]
[1772122208285,0.08035491,86.105,86.051,3.54407849]
[1772122208482,0.08035491,86.105,86.069,10.4563]
[1772122208682,0.08035491,86.105,86.051,3.54407849]
[1772122208883,3.55404734,86.127,86.051,3.54407849]
[1772122209083,3.55404734,86.117,86.051,3.54407849]
[1772122209283,8.5051,86.146,86.051,3.54407849]
[1772122209483,3.55404734,86.144,86.051,3.54407849]
[1772122209688,8.5051,86.145,86.051,3.54407849]
[1772122209689,0.07340691,86.093,86.051,3.54407849]
[1772122209884,3.88604361,86.142,86.051,3.54407849]
[1772122210486,10.4509,86.114,86.061,3.66493613]
[1772122210680,3.88604361,86.142,86.061,3.66493613]
[1772122211090,10.4499,86.122,86.063,14.12203613]
[1772122211286,3.88604361,86.127,86.063,3.66493613]
[1772122211491,3.88604361,86.127,86.041,3.66493613]
[1772122212299,3.88604361,86.109,86.03,3.66493613]
[1772122213200,0.07978428,86.078,86.03,3.66493613]
[1772122214101,3.88604361,86.109,86.04,3.66493613]
[1772122214102,10.4528,86.099,86.04,3.66493613]
[1772122214297,3.88604361,86.109,86.04,3.66493613]
[1772122214701,3.88604361,86.109,86.042,3.66493613]
[1772122215302,10.455,86.081,86.042,3.66493613]
[1772122215503,10.455,86.081,86.032,10.4608]
[1772122215705,10.454,86.089,86.039,10.4599]
[1772122216000,3.88604361,86.093,86.032,3.66493613]
[1772122216800,3.88604361,86.109,86.032,3.66493613]
[1772122217003,3.88604361,86.109,86.04,3.66493613]
[1772122217704,0.07994896,86.083,86.04,3.66493613]
[1772122217900,0.07994896,86.083,86.03,8.30473148]
[1772122218200,0.07994896,86.083,86.023,3.66493613]
[1772122218503,3.88604361,86.091,86.023,3.66493613]
[1772122218704,10.4528,86.099,86.042,3.66493613]
[1772122218903,3.88604361,86.107,86.042,3.66493613]
[1772122219300,3.88604361,86.075,86.025,3.66493613]
[1772122219697,3.88604361,86.075,86.01,8.32829282]
[1772122219902,3.88604361,86.075,86.007,3.66493613]
[1772122220404,10.4568,86.066,86.007,3.66493613]
[1772122220700,8.32829282,86.09,86.033,3.66493613]
[1772122220906,3.88604361,86.095,86.033,3.66493613]
[1772122221096,3.88604361,86.095,86.032,0.07356161]
[1772122221301,3.88604361,86.095,86.015,3.66493613]
[1772122222102,3.88604361,86.095,86.046,0.07379968]
[1772122222296,10.4545,86.085,86.046,0.07379968]
[1772122222702,3.88604361,86.095,86.046,0.07379968]
[1772122223502,3.88604361,86.111,86.046,3.73873581]
[1772122223700,8.32829282,86.11,86.046,0.07379968]
[1772122223905,10.4551,86.08,86.046,0.07379968]
[1772122224099,10.4551,86.08,86.03,3.66493613]
[1772122224302,10.4577,86.058,86.014,3.66493613]
[1772122224903,10.4582,86.054,85.997,3.66493613]
[1772122225212,3.88604361,86.053,85.997,3.66493613]
[1772122225509,3.88604361,86.048,85.981,3.66493613]
[1772122225903,0.0733621,86.034,85.981,3.66493613]
[1772122226604,3.88604361,86.048,85.981,3.66493613]
[1772122227010,3.88604361,86.048,85.992,3.66493613]
[1772122227806,0.07489973,86.029,85.994,10.4654]
[1772122228006,0.07489973,86.029,85.995,3.66493613]
[1772122228907,3.88604361,86.065,85.995,3.66493613]
[1772122229408,10.4585,86.052,85.995,3.66493613]
[1772122229610,3.88604361,86.065,85.995,3.66493613]
[1772122230113,10.4596,86.043,85.995,3.66493613]
[1772122230513,3.88604361,86.049,85.995,3.66493613]
[1772122231107,3.88604361,86.049,86.013,0.07458006]
[1772122231902,3.88604361,86.045,86.013,0.07458006]
[1772122232108,3.88604361,86.039,85.951,3.66493613]
[1772122233107,10.4616,86.026,85.967,3.66493613]
[1772122233514,0.07527378,86.004,85.967,3.66493613]
[1772122233910,0.07527378,86.004,85.977,10.4675]
[1772122234216,0.07527378,86.004,85.967,3.66493613]
[1772122234510,0.07527378,86.004,85.968,14.13343613]
[1772122234710,0.07527378,86.004,85.969,3.66493613]
[1772122234915,3.88604361,86.039,85.969,3.66493613]
[1772122235112,3.88604361,86.026,85.977,0.0737438]
[1772122235615,34.82,86.07,85.949,10.4709]
[1772122235616,10.465,85.999,85.949,10.4709]
[1772122235815,8.32829282,86.02,85.947,3.66493613]
[1772122235816,3.88604361,86.003,85.947,3.66493613]
[1772122236015,3.88604361,86.003,85.92,8.32829282]
[1772122236016,3.88604361,86.003,85.928,3.66493613]
[1772122236610,3.88604361,86.039,85.957,0.07611155]
[1772122236811,3.88604361,86.039,85.958,3.66493613]
[1772122237010,10.4624,86.02,85.972,10.4681]
[1772122237213,3.88604361,86.039,85.958,3.66493613]
[1772122237918,0.07357318,86.007,85.972,10.4681]
[1772122238412,10.4603,86.037,85.985,10.4665]
[1772122239015,10.4603,86.037,85.992,10.4656]
[1772122239313,3.88604361,86.039,85.973,3.68620442]
[1772122239713,3.88604361,86.039,85.99,10.4659]
[1772122239918,3.61230979,86.055,85.99,3.57388808]
[1772122240517,3.61230979,86.055,86.006,0.07627995]
[1772122240518,14.07050979,86.055,86.006,0.07627995]
[1772122241218,3.61230979,86.055,86.006,0.07627995]
[1772122241618,3.61230979,86.055,86.007,10.4638]
[1772122242110,10.4591,86.047,86.006,0.07627995]
[1772122242314,3.61230979,86.055,86.006,0.07627995]
[1772122243117,8.32829282,86.06,86.006,0.07627995]
[1772122243118,3.61230979,86.039,86.006,0.07627995]
[1772122243419,3.61230979,86.039,85.972,3.57388808]
[1772122243619,3.68637533,86.039,85.972,3.57388808]
[1772122244120,3.61230979,86.039,85.972,3.57388808]
[1772122244325,3.61230979,86.039,85.992,10.4657]
[1772122244715,0.07460232,86.014,85.992,10.4657]
[1772122245115,3.61230979,86.039,85.992,10.4657]
[1772122245823,10.4603,86.037,85.992,10.4657]
[1772122246621,10.4603,86.037,85.983,3.57388808]
[1772122248017,10.4603,86.037,85.986,3.57388808]
[1772122248619,3.61230979,86.039,85.989,3.57388808]
[1772122249022,3.61230979,86.038,85.989,3.57388808]
[1772122250017,10.4606,86.034,85.989,3.57388808]
[1772122250213,3.61230979,86.079,85.991,3.57388808]
[1772122251123,10.4585,86.052,86.002,10.4645]
[1772122251326,3.61230979,86.06,85.991,3.57388808]
[1772122252126,3.61230979,86.06,86.001,10.4646]
[1772122252427,3.61230979,86.06,85.991,3.57388808]
[1772122253229,3.61230979,86.06,86.011,3.57388808]
[1772122253425,3.61230979,86.077,86.03,3.11098713]
[1772122253621,3.61230979,86.077,86.03,6.68487521]
[1772122253822,3.11098713,86.09,86.031,3.57388808]
[1772122254324,3.11098713,86.09,86.04,3.11098713]
[1772122254623,3.61230979,86.093,86.041,3.57388808]
[1772122254826,3.61230979,86.11,86.06,3.11098713]
[1772122255023,3.11098713,86.12,86.07,3.11098713]
[1772122255229,3.61230979,86.126,86.051,3.57388808]
[1772122255825,3.61230979,86.126,86.071,10.4561]
[1772122256028,3.61230979,86.143,86.059,3.57388808]
[1772122256820,8.3213166,86.15,86.028,34.82]
[1772122256821,14.06030979,86.138,86.079,10.4551]
[1772122257224,3.61230979,86.157,86.081,3.57388808]
[1772122258231,3.61230979,86.157,86.1,3.57388808]
[1772122258728,3.61230979,86.157,86.11,0.0746173]
[1772122259324,3.61230979,86.177,86.112,10.4511]
[1772122259527,8.3213166,86.2,86.11,3.64850538]
[1772122259728,3.61230979,86.199,86.11,3.64850538]
[1772122259933,3.61230979,86.199,86.131,10.4488]
[1772122260232,3.61230979,86.199,86.131,3.57388808]
[1772122260730,3.61230979,86.199,86.101,3.57388808]
[1772122261131,3.61230979,86.189,86.101,3.57388808]
[1772122261333,3.61230979,86.195,86.101,3.57388808]
[1772122261928,8.3213166,86.21,86.101,3.57388808]
[1772122261929,3.61230979,86.165,86.101,3.57388808]
[1772122262234,3.61230979,86.165,86.081,3.57388808]
[1772122262629,3.69044818,86.142,86.082,10.4547]
[1772122263029,3.61230979,86.142,86.081,3.57388808]
[1772122263430,3.61230979,86.141,86.081,3.57388808]
[1772122263726,3.61230979,86.139,86.061,3.57388808]
[1772122263933,3.61230979,86.126,86.061,3.57388808]
[1772122264736,0.07545578,86.102,86.061,3.57388808]
[1772122265127,0.07545578,86.102,86.04,8.3213166]
[1772122265128,0.07545578,86.102,86.043,3.57388808]
[1772122265329,3.68776557,86.102,86.043,3.57388808]
[1772122265633,3.61230979,86.102,86.043,3.57388808]
[1772122265822,3.61230979,86.101,86.043,3.57388808]
[1772122266024,0.07905838,86.081,86.043,3.57388808]
[1772122266727,10.4506,86.117,86.047,3.57388808]
[1772122266928,3.61230979,86.12,86.054,3.57388808]
[1772122267433,3.61230979,86.156,86.061,3.57388808]
[1772122267623,3.61230979,86.149,86.061,3.57388808]
[1772122267835,10.4501,86.121,86.061,3.57388808]
[1772122268735,10.4501,86.121,86.082,0.07853765]
[1772122268934,10.4512,86.112,86.082,0.07853765]
[1772122269634,10.45,86.122,86.082,0.07853765]
[1772122269834,3.61230979,86.125,86.082,0.07853765]
[1772122270433,3.82219203,86.142,86.082,0.07853765]
[1772122270932,3.82219203,86.142,86.078,3.87193615]
[1772122270933,10.4485,86.135,86.078,3.87193615]
[1772122271125,3.82219203,86.142,86.078,3.87193615]
[1772122272034,3.82219203,86.161,86.078,3.87193615]
[1772122272237,3.82219203,86.161,86.04,8.3213166]
[1772122272238,3.82219203,86.161,86.101,3.95071185]
[1772122272537,3.82219203,86.161,86.101,3.87193615]
[1772122272740,3.82219203,86.161,86.104,3.87193615]
[1772122272938,3.82219203,86.161,86.122,0.07384533]
[1772122273133,3.82219203,86.189,86.123,3.87193615]
[1772122273336,3.82219203,86.189,86.125,3.87193615]
[1772122274636,3.82219203,86.189,86.148,0.07985032]
[1772122275329,3.82219203,86.189,86.11,8.3213166]
[1772122275640,3.89877876,86.177,86.105,3.87193615]
[1772122276033,3.82219203,86.159,86.105,3.87193615]
[1772122276738,0.07365122,86.141,86.105,3.87193615]
[1772122276933,0.07365122,86.141,86.085,3.87193615]
[1772122277332,3.82219203,86.159,86.085,3.87193615]
[1772122277635,3.82219203,86.156,86.085,3.87193615]
[1772122277939,20.8789,86.209,86.046,162.6975]
[1772122277940,3.82219203,86.175,86.091,3.87193615]
[1772122278135,10.4447,86.166,86.115,10.4507]
[1772122278328,3.82219203,86.169,86.091,3.87193615]
[1772122278839,3.82219203,86.169,86.094,3.87193615]
[1772122279139,3.82219203,86.187,86.121,0.0734456]
[1772122279440,3.82219203,86.187,86.122,3.87193615]
[1772122280038,3.82219203,86.187,86.104,3.87193615]
[1772122280234,10.4441,86.171,86.146,0.07345984]
[1772122280438,3.82219203,86.187,86.146,0.07345984]
[1772122280934,3.82219203,86.187,86.107,3.87193615]
[1772122281130,3.82219203,86.174,86.107,3.87193615]
[1772122281533,3.82219203,86.174,86.116,10.4506]
[1772122282231,3.82219203,86.174,86.107,3.87193615]
[1772122282541,0.07482046,86.149,86.107,3.87193615]
[1772122283536,10.4468,86.148,86.107,3.87193615]
[1772122283741,0.07482046,86.149,86.081,3.87193615]
[1772122284238,10.4471,86.146,86.095,3.87193615]
[1772122284541,3.82219203,86.157,86.095,3.87193615]
[1772122284743,3.82219203,86.157,86.104,10.4521]
[1772122284744,10.4459,86.156,86.104,10.4521]
[1772122285638,0.07826088,86.139,86.104,10.4521]
[1772122285843,0.07826088,86.139,86.096,3.87193615]
[1772122286539,0.07826088,86.139,86.099,3.87193615]
[1772122286747,3.82219203,86.199,86.101,3.87193615]
[1772122286940,3.82219203,86.199,86.109,3.87193615]
[1772122287545,10.4421,86.187,86.124,3.87193615]
[1772122287748,3.82219203,86.199,86.124,3.87193615]
[1772122288246,10.441,86.196,86.134,10.4484]
[1772122288452,3.82219203,86.199,86.135,3.87193615]
[1772122288855,3.82219203,86.219,86.141,3.87193615]
[1772122289351,3.82219203,86.219,86.161,10.4451]
[1772122289745,282.21004347,86.222,86.18,10.4428]
[1772122290053,3.82219203,86.232,86.162,3.87193615]
[1772122290350,3.82219203,86.221,86.162,3.87193615]
[1772122291056,3.82219203,86.22,86.183,0.07772878]
[1772122291248,3.82219203,86.22,86.144,3.87193615]
[1772122291447,3.82219203,86.195,86.135,10.4483]
[1772122292350,3.82219203,86.195,86.143,10.4473]
[1772122292649,3.82219203,86.195,86.12,8.3105123]
[1772122293656,3.82219203,86.195,86.121,3.87193615]
[1772122293956,3.82219203,86.214,86.121,3.87193615]
[1772122294155,3.82219203,86.214,86.144,3.87193615]
[1772122294156,10.4393,86.21,86.144,3.87193615]
[1772122294354,3.82219203,86.209,86.144,3.87193615]
[1772122294653,3.82219203,86.195,86.129,10.449]
[1772122294850,3.89945787,86.186,86.126,3.87193615]
[1772122295056,3.89945787,86.186,86.101,3.87193615]
[1772122295349,10.4453,86.16,86.102,10.4522]